Cogmind - Beta 14 @@@ ROGUE MODE // 2024.08.09 @ 16:35:22 Player: ChromeKnight Result: Self-destructed Performance ------------- Evolutions (2) 1000 Regions Visited (6) 1200 Robots Destroyed (2) 10 Value Destroyed (52) 52 Prototype IDs (0) 0 Alien Tech Used (0) 0 Bonus (200) 200 TOTAL SCORE: 2462 Bonus ------- Pacifist 200 Cogmind --------- Core Integrity 542/550 Matter 290/300 Energy 125/125 System Corruption 0% Temperature Cool (2) Movement Flying (35) Location -8/Materials Parts ------- > --- POWER (1) -------- Light Ion Engine > --- PROPULSION (3) --- VTOL Module > --- UTILITY (4) ------ Advanced Visual Processing Unit Sensor Array Improved Targeting Computer > --- WEAPON (3) ------- (None) > --- INVENTORY (5) ---- Carbon-fiber Leg Carbon-fiber Leg Improved Utility Shielding Improved Light Armor Plating Maul Peak State ------------ > --- POWER ------------ Light Ion Engine > --- PROPULSION ------- Flight Unit VTOL Module > --- UTILITY ---------- Sensor Array Improved Targeting Computer Backup Plating I > --- WEAPON ----------- Autogun > --- INVENTORY -------- Carbon-fiber Leg Carbon-fiber Leg Medium Armor Plating Maul [Rating: 11] Favorites ----------- Power Light Ion Engine Engine Light Ion Engine Propulsion VTOL Module Flight Unit VTOL Module Utility Sensor Array Device Sensor Array Processor Improved Targeting Computer Protection Backup Plating I Weapon Autogun Energy Gun Backup Laser I Ballistic Gun Autogun Build | -11 -10 -9 -9 -9 -8 -8 ------- Run | Yrd Mat Mat Min Exi Min Mat Slots Evolved 4 | . . 2 . . . 2 Power . | . . . . . . . Propulsion 1 | . . 1 . . . . Utility 2 | . . 1 . . . 1 Weapon 1 | . . . . . . 1 Parts Attached 9 | . . 4 4 . . 1 Power 1 | . . . 1 . . . Engine 1 | . . . 1 . . . Core . | . . . . . . . Reactor . | . . . . . . . Propulsion 3 | . . 3 . . . . Treads . | . . . . . . . Leg . | . . . . . . . Wheel . | . . . . . . . Hover . | . . . . . . . Flight 3 | . . 3 . . . . Utility 4 | . . 1 2 . . 1 Device 1 | . . 1 . . . . Storage . | . . . . . . . Processor 3 | . . . 2 . . 1 Hackware . | . . . . . . . Protection . | . . . . . . . Artifact . | . . . . . . . Weapon 1 | . . . 1 . . . Energy Gun . | . . . . . . . Energy Cannon . | . . . . . . . Ballistic Gun 1 | . . . 1 . . . Ballistic Cannon . | . . . . . . . Launcher . | . . . . . . . Special Weapon . | . . . . . . . Impact Weapon . | . . . . . . . Slashing Weapon . | . . . . . . . Piercing Weapon . | . . . . . . . Special Melee Weapon . | . . . . . . . Unidentified Prototypes . | . . . . . . . Parts Lost 3 | . . 1 1 . 1 . Power 1 | . . 1 . . . . Propulsion 2 | . . . 1 . 1 . Utility . | . . . . . . . Weapon . | . . . . . . . Highest Loss Streak 1 | . . 1 1 . 1 . To Critical Strikes . | . . . . . . . Average Slot Usage (%) 69 | . . 49 75 77 76 42 Engine 8 | . . 3 6 11 11 9 Flight 21 | . . 20 25 22 21 9 Device 10 | . . 9 11 11 11 9 Processor 8 | . . . 6 11 11 15 Protection 9 | . . 5 11 11 10 . Energy Gun 3 | . . 11 9 . . . Ballistic Gun 7 | . . . 6 11 10 . Peak Build Rating 11 | . . 10 11 11 11 10 Average Rating 9 | . . 6 9 11 10 9 On Entrance 5 | . . . 9 11 11 7 Naked Turns 41 | . 37 4 . . . . Heaviest Build 8 | . . 5 8 8 8 4 Greatest Support 12 | 3 3 12 12 8 8 4 Greatest Overweight (x) 1 | . . . . . 1 . Average Overweight (x) . | . . . . . . . Largest Inventory Capacity 5 | 5 5 5 5 5 5 5 Average Capacity 5 | 5 5 5 5 5 5 5 Most Carried 5 | . . 1 5 5 5 5 Average Carried 3 | . . . 3 5 4 5 Final Capacity 5 | 5 5 5 5 5 5 5 Final Carried 5 | . . 1 5 5 5 5 Class Distribution -------------------- 82% | Mutant 17% | Sprinter Dominant Class ---------------- Mutant | -10/Materials Sprinter | -9/Materials Mutant | -9/Mines Mutant | -9/Exiles Mutant | -8/Mines Mutant | -8/Materials Resources | -11 -10 -9 -9 -9 -8 -8 ----------- Run | Yrd Mat Mat Min Exi Min Mat Matter Collected 263 | . . 99 164 . . . Remotely . | . . . . . . . Salvage Created 54 | . . . 54 . . . Parts 4 | . . . 4 . . . Haulers Intercepted . | . . . . . . . Recyclers Shooed . | . . . . . . . Parts Field Recycled . | . . . . . . . Retrieved Matter . | . . . . . . . Parts Self-Destructed . | . . . . . . . Prevented . | . . . . . . . Kills | -11 -10 -9 -9 -9 -8 -8 ------- Run | Yrd Mat Mat Min Exi Min Mat Combat Hostiles Destroyed 1 | . . . 1 . . . Guns 1 | . . . 1 . . . Classes Destroyed 2 | . . . 2 . . . Builder 1 | . . . 1 . . . Grunt 1 | . . . 1 . . . Best Kill Streak 2 | . . . 2 . . . Combat Bots Only 1 | . . . 1 . . . Max Kills in Single Turn 1 | . . . 1 . . . Gunslinging . | . . . . . . . Exploded . | . . . . . . . Melee . | . . . . . . . Uniques/NPCs Destroyed . | . . . . . . . Combat | -11 -10 -9 -9 -9 -8 -8 -------- Run | Yrd Mat Mat Min Exi Min Mat Hostile Shots Fired 61 | . . 40 10 . 7 4 Missed 34 | . . 21 5 . 5 3 Damage Taken 313 | . 12 179 79 . 35 8 Core 108 | . 12 72 16 . . 8 Absorbed by Shields . | . . . . . . . Core Remaining (%) 91 | 100 95 . . . 78 . Volleys Fired 9 | . . . 9 . . . Largest 2 | . . . 2 . . . Hottest 60 | . . . 60 . . . Shots Fired 18 | . . . 18 . . . Gun 18 | . . . 18 . . . Cannon . | . . . . . . . Launcher . | . . . . . . . Special . | . . . . . . . Kinetic . | . . . . . . . Thermal 18 | . . . 18 . . . Explosive . | . . . . . . . Electromagnetic . | . . . . . . . Robot Hit Streak 3 | . . . 3 . . . Robot Miss Streak 3 | . . . 3 . . . Penetration Max . | . . . . . . . Secondary Targets . | . . . . . . . Shots Hit Robots 10 | . . . 10 . . . Core Hits 7 | . . . 7 . . . Critical Kills . | . . . . . . . Critical Parts Destroyed . | . . . . . . . Critical Strikes . | . . . . . . . Melee Attacks . | . . . . . . . Impact . | . . . . . . . Slashing . | . . . . . . . Piercing . | . . . . . . . Sneak Attacks . | . . . . . . . Combat Hostiles . | . . . . . . . Follow-up Attacks . | . . . . . . . Damage Inflicted 99 | . 14 . 85 . . . Guns 85 | . . . 85 . . . Cannons . | . . . . . . . Explosions . | . . . . . . . Melee . | . . . . . . . Ramming 14 | . 14 . . . . . Kinetic . | . . . . . . . Thermal 85 | . . . 85 . . . Explosive . | . . . . . . . Electromagnetic . | . . . . . . . Impact . | . . . . . . . Slashing . | . . . . . . . Piercing . | . . . . . . . Highest Corruption . | . . . . . . . Average Corruption . | . . . . . . . Corruption Purged . | . . . . . . . Corruption Blocked . | . . . . . . . Overload Shots . | . . . . . . . Overflow Damage . | . . . . . . . Projectiles . | . . . . . . . Explosions . | . . . . . . . Melee . | . . . . . . . Knockbacks . | . . . . . . . Impact . | . . . . . . . Kinetic . | . . . . . . . Secondary . | . . . . . . . Self-Inflicted Damage 7 | . 7 . . . . . Shots . | . . . . . . . Rammed 2 | . 2 . . . . . Targets Rammed 2 | . 2 . . . . . Kicked . | . . . . . . . Crushed . | . . . . . . . Highest Temperature 11 | . . 11 6 . . . Average Temperature 4 | . . 11 3 . . . Received Heat Transfer 105 | . . 42 45 . 18 . Siege Activations . | . . . . . . . Robots Corrupted . | . . . . . . . Combat Hostiles . | . . . . . . . Parts Fried . | . . . . . . . Impact Corruptions . | . . . . . . . Robots Melted . | . . . . . . . Combat Hostiles . | . . . . . . . Parts Melted 1 | . . . 1 . . . Heat Transferred 370 | . . . 370 . . . Parts Sabotaged . | . . . . . . . Parts Stolen . | . . . . . . . Parts Stripped . | . . . . . . . Power Chain Reactions . | . . . . . . . Alert | -11 -10 -9 -9 -9 -8 -8 ------- Run | Yrd Mat Mat Min Exi Min Mat Peak Influence 100 | . 20 78 100 . . 45 Initial 30 | . . 8 30 . . . Average 28 | . 11 24 86 . . 11 Maximum Alert Level . | . . . . . . . Low Security (%) 100 | 100 100 100 100 . 100 100 Level 1 . | . . . . . . . Level 2 . | . . . . . . . Level 3 . | . . . . . . . Level 4 . | . . . . . . . Level 5 . | . . . . . . . High Security . | . . . . . . . Max Security . | . . . . . . . Squads Dispatched 1 | . . 1 . . . . Investigation . | . . . . . . . Extermination . | . . . . . . . Reinforcement 1 | . . 1 . . . . Assault . | . . . . . . . Garrison . | . . . . . . . Intercept . | . . . . . . . Searches Triggered . | . . . . . . . Construction Impeded . | . . . . . . . Haulers Reinforced . | . . . . . . . Active Scanning Responses . | . . . . . . . Cargo Convoy Interrupts . | . . . . . . . Stealth | -11 -10 -9 -9 -9 -8 -8 --------- Run | Yrd Mat Mat Min Exi Min Mat Distress Signals . | . . . . . . . Communications Jammed . | . . . . . . . Distress Signals . | . . . . . . . Times Spotted 30 | . 1 17 5 . 3 4 Peak Tracking Total 17 | . 1 17 4 . 3 4 Tactical Retreats 3 | . . 1 1 . . 1 Traps | -11 -10 -9 -9 -9 -8 -8 ------- Run | Yrd Mat Mat Min Exi Min Mat Traps Triggered . | . . . . . . . Indirectly . | . . . . . . . Trap Hack Attempts . | . . . . . . . Triggered . | . . . . . . . Disarmed . | . . . . . . . Reprogrammed . | . . . . . . . Reused . | . . . . . . . Traps Extracted . | . . . . . . . Installed . | . . . . . . . Triggered . | . . . . . . . Machines | -11 -10 -9 -9 -9 -8 -8 ---------- Run | Yrd Mat Mat Min Exi Min Mat Machines Disabled . | . . . . . . . Max in Single Turn . | . . . . . . . Machines Repaired . | . . . . . . . Machines Dismantled . | . . . . . . . Machines Sabotaged . | . . . . . . . Overloaded Fab Kills . | . . . . . . . Hacking | -11 -10 -9 -9 -9 -8 -8 --------- Run | Yrd Mat Mat Min Exi Min Mat Machines Accessed 4 | . 1 3 . . . . Terminals 3 | . 1 2 . . . . Fabricators . | . . . . . . . Repair Stations 1 | . . 1 . . . . Recycling Units . | . . . . . . . Scanalyzers . | . . . . . . . Garrison Access . | . . . . . . . Total Hacks 8 | . 2 6 . . . . Successful 3 | . 1 2 . . . . Failed 5 | . 1 4 . . . . Catastrophic 2 | . 1 1 . . . . Database Lockouts . | . . . . . . . Manual 4 | . 1 3 . . . . Terminals 7 | . 2 5 . . . . Fabricators . | . . . . . . . Repair Stations 1 | . . 1 . . . . Recycling Units . | . . . . . . . Scanalyzers . | . . . . . . . Garrison Access . | . . . . . . . Terminal Hacks 2 | . 1 1 . . . . Zone Layout 2 | . 1 1 . . . . Fabricator Hacks . | . . . . . . . Repair Station Hacks 1 | . . 1 . . . . Refit 1 | . . 1 . . . . Recycling Unit Hacks . | . . . . . . . Scanalyzer . | . . . . . . . Garrison Access Hacks . | . . . . . . . Unauthorized Hacks . | . . . . . . . Terminals . | . . . . . . . Fabricators . | . . . . . . . Repair Stations . | . . . . . . . Recycling Units . | . . . . . . . Scanalyzers . | . . . . . . . Garrison Access . | . . . . . . . Data Cores Recovered . | . . . . . . . Used . | . . . . . . . Hacking Detections 2 | . 1 1 . . . . Full Trace Events . | . . . . . . . Feedback Events . | . . . . . . . Feedback Blocked . | . . . . . . . Robot Schematics Acquired . | . . . . . . . Robots Built . | . . . . . . . Authchips . | . . . . . . . Time . | . . . . . . . Total Robot Build Rating . | . . . . . . . Part Schematics Acquired . | . . . . . . . Parts Built . | . . . . . . . Authchips . | . . . . . . . Time . | . . . . . . . Total Part Build Rating . | . . . . . . . Parts Repaired . | . . . . . . . Time . | . . . . . . . Parts Recycled . | . . . . . . . Recycled Matter . | . . . . . . . Retrieved Matter . | . . . . . . . Retrieved Components . | . . . . . . . Parts Scanalyzed . | . . . . . . . Part Schematics Acquired . | . . . . . . . Parts Damaged . | . . . . . . . Bothacking | -11 -10 -9 -9 -9 -8 -8 ------------ Run | Yrd Mat Mat Min Exi Min Mat Used RIF Installer . | . . . . . . . Robots Hacked . | . . . . . . . Non-combat . | . . . . . . . Combat . | . . . . . . . Robot Hacks Applied . | . . . . . . . Relay Couplers Released . | . . . . . . . Fabnet Peak Effective % . | . . . . . . . Robots Rewired . | . . . . . . . Allies Hacked . | . . . . . . . Hacks Repelled . | . . . . . . . Allies | -11 -10 -9 -9 -9 -8 -8 -------- Run | Yrd Mat Mat Min Exi Min Mat Total Allies . | . . . . . . . Largest Group . | . . . . . . . Highest-Rated Group . | . . . . . . . Highest-Rated Ally . | . . . . . . . Total Orders . | . . . . . . . Ally Attacks . | . . . . . . . Total Damage . | . . . . . . . Kills . | . . . . . . . Allies Corrupted . | . . . . . . . Allies Melted . | . . . . . . . Intel | -11 -10 -9 -9 -9 -8 -8 ------- Run | Yrd Mat Mat Min Exi Min Mat Robot Analysis Total . | . . . . . . . Derelict Logs Recovered 1 | . . . 1 . . . Drone Launches . | . . . . . . . Drone Recoveries . | . . . . . . . Exploration | -11 -10 -9 -9 -9 -8 -8 ------------- Run | Yrd Mat Mat Min Exi Min Mat Turns Passed 780 | 9 37 60 218 45 378 33 Spaces Moved 1287 | 18 70 164 448 133 366 88 Core 95 | 18 70 7 . . . . Treads . | . . . . . . . Legs . | . . . . . . . Wheels . | . . . . . . . Hover . | . . . . . . . Flight 1192 | . . 157 448 133 366 88 Fastest Speed 30 | 50 50 30 30 34 34 35 Average Speed 34 | 50 50 32 32 34 34 35 Slowest Speed 115 | 50 50 50 34 34 115 35 Overloaded Moves . | . . . . . . . Propulsion Burnouts . | . . . . . . . Robots Hopped 27 | . . 12 6 . 9 . Cave-ins Triggered . | . . . . . . . Exploration Rate (%) 34 | 2 20 24 75 53 54 14 Regions Visited 6 Branch Regions 3 Pre-discovered Areas . | . . . . . . . Known Exits Taken . | . . . . . . . Unknown Exits Taken 6 | 1 1 1 1 1 1 . Scrap Searched 4 | . . . 2 . 2 . Spaces Dug . | . . . . . . . Terrain Destroyed . | . . . . . . . Melee . | . . . . . . . Projectile . | . . . . . . . AOE . | . . . . . . . Terrain Rammed . | . . . . . . . Walls Destroyed . | . . . . . . . Machines Disabled . | . . . . . . . Actions | -11 -10 -9 -9 -9 -8 -8 --------- Run | Yrd Mat Mat Min Exi Min Mat Total 1572 | 17 71 156 495 132 610 91 Wait 285 | . . . 35 . 250 . Move 1230 | 17 69 142 435 132 347 88 Hop 24 | . . 9 6 . 9 . Pick Up 7 | . . 1 4 . 1 1 Fast Attach 8 | . . 4 3 . . 1 Attach . | . . . . . . . Detach . | . . . . . . . Swap 1 | . . . 1 . . . Drop 6 | . . . 2 . 3 1 Fire 9 | . . . 9 . . . Melee . | . . . . . . . Ram 2 | . 2 . . . . . Kick . | . . . . . . . Crush . | . . . . . . . Escape Stasis . | . . . . . . . Rewire . | . . . . . . . Trap . | . . . . . . . Miscellaneous . | . . . . . . . Route ------- -11/Scrapyard -10/Materials -9/Materials -9/Mines (discovered 2 exits: [*Mat] / [*Exi]) -9/Exiles -8/Mines -8/Materials History --------- Turn | Location | Event 4 | -11/Scrapyard | Discovered new exit (range 13) 10 | -11/Scrapyard | Entered Materials 41 | -10/Materials | Discovered new exit (range 13) 47 | -10/Materials | Entered another Materials area 47 | -9/Materials | Evolved 2 slots: Propulsion x1, Utility x1 105 | -9/Materials | Discovered new exit (range 8) 107 | -9/Materials | Entered Mines 127 | -9/Mines | Joined a pair of Derelicts in attacking an 0b10 outpost 129 | -9/Mines | Discovered new exit (range 15) 300 | -9/Mines | Learned 2 Materials zone layouts 322 | -9/Mines | Deemed a non-threat by the Exiles lab entrance 322 | -9/Mines | Discovered new exit (range 5) 325 | -9/Mines | Entered Exiles 334 | -9/Exiles | Met 8R-AWN 339 | -9/Exiles | Met EX-HEX 349 | -9/Exiles | Met EX-BIN 353 | -9/Exiles | Met EX-DEC 366 | -9/Exiles | Discovered new exit (range 15) 370 | -9/Exiles | Entered Mines 491 | -8/Mines | Build established: Mutant 736 | -8/Mines | Discovered new exit (range 9) 748 | -8/Mines | Entered Materials 748 | -8/Materials | Evolved 2 slots: Utility x1, Weapon x1 781 | -8/Materials | Self-destructed Last Messages --------------- 00703_ Searching scrap... 00703_ Found Beam Rifle. 00703_ Found Imp. Utility Shielding. 00703_ Found 57 Matter. 00704_ Dropped Carbon-fiber Leg. 00705_ Acquired Imp. Utility Shielding. 00707_ R-06 Scavenger collects Carbon-fiber Leg. 00736_ EXIT=FOUND 00737_ Flight Unit destroyed. 00738_ Dropped Backup Plating I. 00739_ Dropped Autogun. PARAMETERS=UTILITY+1,WEAPON+1 LOCATION=UNKNOWN GOAL=ESCAPE Loading 2 Materials zones... 00751_ Acquired Adv. Visual Processing Unit. 00776_ U-05 Engineer works on Atomic Centrifuge. 00776_ Dropped Med. Armor Plating. 00776_ Acquired Imp. Light Armor Plating. 00779_ K-01 Serf collects debris. Map ----- +----------------------------------------------------+ | # ### # #????????????????????? """ | | # #?## ## #?????????####???????? """ | | # #??# ## #???????? #???????? "" | | # #??# ###########???????? #???????? | | # #??# ################### #???????? | | # #??# #???????? "" | | # #??# #???????? """ | | # #??# #???????? """ | | # #??##############/####### #???????? """ | | # #???????????# #?? ###+####? "" | | # ????????????#"S ?" #?? ?? | | # ????????????#""" " #?? ??? | | # ????????????# "" ? #?? """" ? "" | | ? ????????????# #?? """" """ | | ? ????????????# #?? """" """ | | ? ????????????# ! #?? """ | | ???????????????# ### "Y" "" | | ???????????????######+#### """ | | ????????????????????# ???? | | ????????????????????###### ???? | | ????????????????#######??# #####+##### #?????? | | ????????????????# ?# #??????????? ???????? | | ????????????????# """ ?# #???????????????????? | | ????????????????# """ # #???????????????????? | | ????????????????# """ # #???????????????????? | | ????????????????# [ @ #???????????????????? | | ????????????????# """ # #???????????????????? | | ????????????????# """ # #???????????????????? | | ????????????????# """ ?# #???????????????????? | | ????????????????# ?# #???????????????????? | | ????????????????#######??# #???????????????????? | | ?????????????????????????# #???????????????????? | | ????????????????????????? #???????????????????? | | ?????????????????????????# ???????????????????? | | ?????????????????????????##+##???????????????????? | | ?????????????????????????????????????????????????? | | ?????????????????????????????????????????????????? | | ?????????????????????????????????????????????????? | | ?????????????????????????????????????????????????? | | ?????????????????????????????????????????????????? | | ?????????????????????????????????????????????????? | | ?????????????????????????????????????????????????? | | ?????????????????????????????????????????????????? | | | | | | | | | | | | | | | +----------------------------------------------------+ Best States ------------- Heat Dissipation 31 Energy Generation 10 Energy Capacity 125 Matter Stores 300 Matter Capacity 300 Sight Range 20 Robot Scan Range 14 Terrain Scan Density 10 Armor Coverage 80 Evasion (%) 64 Targeting Accuracy 6 Item Schematics ----------------- None Robot Schematics ------------------ None Fabricated ------------ Nothing Alien Tech Used ----------------- None Achievements -------------- None Challenges ------------ None Game ------ Seed TerrabombHelicalBallwheel Manual? 0 Play Time 00:08:12 Cumulative 460.9 hours Start 2024.08.08 @ 15:22:44 End 2024.08.09 @ 16:35:22 Sessions 3 Manual Loads 0 Difficulty Rogue Special Mode None Game No. 790 Rogue 635 Adventurer 148 Explorer 7 Win Type - Total 22 Types 17/1/3/1/0/0/0/0/0 Lore% 58 Gallery% 83 Achievement% 74 Wizard Run 0 Options --------- Layout 1 ASCII 0 Keyboard 0 Movement Numpad Keybinds 0 Fullscreen 2 Font 24/Smallcaps Map View 50x35 Zoom Use 0% Tactical HUD 1 Map Filters NONE Filters NONE Steam 1 RUN: bfe63678-9ded-4916-8dce-7fae8d5dec66